{"text_format":"3","workbook":"xlsx","n_sheets":2,"sheets":["Izdevumi","Kategorija"],"not_rendered":{"defined_names":5},"read":"whole","date_system":"1900"}

{"sheet":"Izdevumi","index":0,"n_rows":25,"n_cols":7,"rows_kept":25,"merged":[[0,1,0,5],[1,1,1,6]]}
[null,"IZDEVUMU BUDŽETS",{"$nulls":4},{"$f":"TODAY()","v":"2018-06-19"}]
[null,"Uzņēmuma nosaukums"]
[null,"Izdevumi","Kategorija","Budžets","Faktiskā summa","Starpība (EUR)","Starpība (%)"]
[null,"Reklāma","Darbs",null,null,{"$f":"IFERROR(SUM(Izdevumi[Budžets]-Izdevumi[Faktiskā summa]), \"\")","v":0},{"$f":"IFERROR(SUM(Izdevumi[Starpība (EUR)]/Izdevumi[Budžets]),\"\")","v":""}]
[null,"Parādi","Darbs",null,null,{"$f":"IFERROR(SUM(Izdevumi[Budžets]-Izdevumi[Faktiskā summa]), \"\")","v":0},{"$f":"IFERROR(SUM(Izdevumi[Starpība (EUR)]/Izdevumi[Budžets]),\"\")","v":""}]
[null,"Ienākumi","Darbs",null,null,{"$f":"IFERROR(SUM(Izdevumi[Budžets]-Izdevumi[Faktiskā summa]), \"\")","v":0},{"$f":"IFERROR(SUM(Izdevumi[Starpība (EUR)]/Izdevumi[Budžets]),\"\")","v":""}]
[null,"Materiāli","Darbs",null,null,{"$f":"IFERROR(SUM(Izdevumi[Budžets]-Izdevumi[Faktiskā summa]), \"\")","v":0},{"$f":"IFERROR(SUM(Izdevumi[Starpība (EUR)]/Izdevumi[Budžets]),\"\")","v":""}]
[null,"Pasta izdevumi","Darbs",null,null,{"$f":"IFERROR(SUM(Izdevumi[Budžets]-Izdevumi[Faktiskā summa]), \"\")","v":0},{"$f":"IFERROR(SUM(Izdevumi[Starpība (EUR)]/Izdevumi[Budžets]),\"\")","v":""}]
[null,"Īre vai hipotekārais kredīts","Darbs",null,null,{"$f":"IFERROR(SUM(Izdevumi[Budžets]-Izdevumi[Faktiskā summa]), \"\")","v":0},{"$f":"IFERROR(SUM(Izdevumi[Starpība (EUR)]/Izdevumi[Budžets]),\"\")","v":""}]
[null,"Pārdošanas izmaksas","Darbs",null,null,{"$f":"IFERROR(SUM(Izdevumi[Budžets]-Izdevumi[Faktiskā summa]), \"\")","v":0},{"$f":"IFERROR(SUM(Izdevumi[Starpība (EUR)]/Izdevumi[Budžets]),\"\")","v":""}]
[null,"Nodokļi","Darbs",null,null,{"$f":"IFERROR(SUM(Izdevumi[Budžets]-Izdevumi[Faktiskā summa]), \"\")","v":0},{"$f":"IFERROR(SUM(Izdevumi[Starpība (EUR)]/Izdevumi[Budžets]),\"\")","v":""}]
[null,"Komunālie pakalpojumi","Darbs",null,null,{"$f":"IFERROR(SUM(Izdevumi[Budžets]-Izdevumi[Faktiskā summa]), \"\")","v":0},{"$f":"IFERROR(SUM(Izdevumi[Starpība (EUR)]/Izdevumi[Budžets]),\"\")","v":""}]
[null,"Citi","Darbs",null,null,{"$f":"IFERROR(SUM(Izdevumi[Budžets]-Izdevumi[Faktiskā summa]), \"\")","v":0},{"$f":"IFERROR(SUM(Izdevumi[Starpība (EUR)]/Izdevumi[Budžets]),\"\")","v":""}]
[null,"Apdrošināšana","Darbs",null,null,{"$f":"IFERROR(SUM(Izdevumi[Budžets]-Izdevumi[Faktiskā summa]), \"\")","v":0},{"$f":"IFERROR(SUM(Izdevumi[Starpība (EUR)]/Izdevumi[Budžets]),\"\")","v":""}]
[null,"Procenti","Darbs",null,null,{"$f":"IFERROR(SUM(Izdevumi[Budžets]-Izdevumi[Faktiskā summa]), \"\")","v":0},{"$f":"IFERROR(SUM(Izdevumi[Starpība (EUR)]/Izdevumi[Budžets]),\"\")","v":""}]
[null,"Tālrunis","Darbs",null,null,{"$f":"IFERROR(SUM(Izdevumi[Budžets]-Izdevumi[Faktiskā summa]), \"\")","v":0},{"$f":"IFERROR(SUM(Izdevumi[Starpība (EUR)]/Izdevumi[Budžets]),\"\")","v":""}]
[null,"Apkope un remonts","Darbs",null,null,{"$f":"IFERROR(SUM(Izdevumi[Budžets]-Izdevumi[Faktiskā summa]), \"\")","v":0},{"$f":"IFERROR(SUM(Izdevumi[Starpība (EUR)]/Izdevumi[Budžets]),\"\")","v":""}]
[null,"Juridiskie pakalpojumi","Darbs",null,null,{"$f":"IFERROR(SUM(Izdevumi[Budžets]-Izdevumi[Faktiskā summa]), \"\")","v":0},{"$f":"IFERROR(SUM(Izdevumi[Starpība (EUR)]/Izdevumi[Budžets]),\"\")","v":""}]
[null,"Nolietojums","Darbs",null,null,{"$f":"IFERROR(SUM(Izdevumi[Budžets]-Izdevumi[Faktiskā summa]), \"\")","v":0},{"$f":"IFERROR(SUM(Izdevumi[Starpība (EUR)]/Izdevumi[Budžets]),\"\")","v":""}]
[null,"Piegāde","Darbs",null,null,{"$f":"IFERROR(SUM(Izdevumi[Budžets]-Izdevumi[Faktiskā summa]), \"\")","v":0},{"$f":"IFERROR(SUM(Izdevumi[Starpība (EUR)]/Izdevumi[Budžets]),\"\")","v":""}]
[null,"Noliktava","Darbs",null,null,{"$f":"IFERROR(SUM(Izdevumi[Budžets]-Izdevumi[Faktiskā summa]), \"\")","v":0},{"$f":"IFERROR(SUM(Izdevumi[Starpība (EUR)]/Izdevumi[Budžets]),\"\")","v":""}]
[null,"Veikals","Personisks",null,null,{"$f":"IFERROR(SUM(Izdevumi[Budžets]-Izdevumi[Faktiskā summa]), \"\")","v":0},{"$f":"IFERROR(SUM(Izdevumi[Starpība (EUR)]/Izdevumi[Budžets]),\"\")","v":""}]
[null,"Pārdevēji","Personisks",null,null,{"$f":"IFERROR(SUM(Izdevumi[Budžets]-Izdevumi[Faktiskā summa]), \"\")","v":0},{"$f":"IFERROR(SUM(Izdevumi[Starpība (EUR)]/Izdevumi[Budžets]),\"\")","v":""}]
[null,"Citi","Personisks",null,null,{"$f":"IFERROR(SUM(Izdevumi[Budžets]-Izdevumi[Faktiskā summa]), \"\")","v":0},{"$f":"IFERROR(SUM(Izdevumi[Starpība (EUR)]/Izdevumi[Budžets]),\"\")","v":""}]
[null,"Kopējie izdevumi",null,{"$f":"IFERROR(SUM(Izdevumi[Budžets]), \"\")","v":0},{"$f":"IFERROR(SUM(Izdevumi[Faktiskā summa]), \"\")","v":0},{"$f":"IFERROR(SUM(Izdevumi[Starpība (EUR)]), \"\")","v":0},{"$f":"IFERROR(SUM(Izdevumi[[#Totals],[Starpība (EUR)]]/Izdevumi[[#Totals],[Budžets]]),\"\")","v":""}]

{"sheet":"Kategorija","index":1,"n_rows":4,"n_cols":2,"rows_kept":4}
[null,"Kategorijas meklēšana"]
[null,"Kategorija"]
[null,"Darbs"]
[null,"Personisks"]